bitfinex-derivatives/quotes_SOLF0:USTF0_20250614
["timestamp","ask_amount","ask_price","bid_price","bid_amount"]
[1749908758021,5.21124975,145.12,145.1,0.04849717]
[1749908758420,6.8886,145.11,145.1,0.04849717]
[1749908760316,6.8886,145.11,145.1,9.717e-05]
[1749908760818,6.8909,145.06,145.05,34.54]
[1749908761212,6.8909,145.06,145.02,34.54]
[1749908761614,5.21124975,145.07,145.02,34.54]
[1749908762018,0.05197099,145.06,145.03,6.8923]
[1749908763028,6.94297099,145.06,145.03,6.8923]
[1749908763422,0.05197099,145.06,145.02,34.54]
[1749908764027,0.05197099,145.06,145.03,6.892]
[1749908764522,0.05197099,145.06,145.02,34.54]
[1749908764727,0.05197099,145.06,145.04,6.8914]
[1749908764924,0.05197099,145.06,145.02,34.54]
[1749908765226,6.8896,145.09,145.02,39.75124975]
[1749908765428,6.8896,145.09,145.05,6.8914]
[1749908765824,6.8896,145.09,145.02,39.75124975]
[1749908766031,6.8879,145.13,145.06,5.21124975]
[1749908766228,0.04785558,145.11,145.08,0.04389991]
[1749908766430,0.04785558,145.11,145.08,6.93369991]
[1749908767627,0.04785558,145.11,145.08,0.04389991]
[1749908768623,6.93645558,145.11,145.08,0.04389991]
[1749908769638,6.93645558,145.11,145.08,6.93369991]
[1749908769935,6.93645558,145.11,145.08,0.04389991]
[1749908771029,0.04785558,145.11,145.08,0.04389991]
[1749908771430,6.8893,145.1,145.08,0.04389991]
[1749908771832,5.25910533,145.11,145.08,0.04389991]
[1749908772032,6.8895,145.09,145.08,0.04389991]
[1749908772531,5.25910533,145.11,145.08,0.04389991]
[1749908772937,6.8895,145.09,145.08,0.04389991]
[1749908773438,5.25910533,145.11,145.08,0.04389991]
[1749908773634,2.56602276,145.1,145.08,0.04389991]
[1749908773937,6.8895,145.09,145.08,0.04389991]
[1749908776335,6.8895,145.09,145.06,35.64]
[1749908776336,6.8905,145.07,145.06,35.64]
[1749908776533,6.8905,145.07,145.03,35.64]
[1749908776735,6.8905,145.07,145.03,42.532]
[1749908777141,6.891,145.06,145.03,42.532]
[1749908777436,6.891,145.06,145.03,35.64]
[1749908777437,0.05128585,145.06,145.03,35.64]
[1749908778742,0.05128585,145.06,145.04,6.8915]
[1749908779135,0.05128585,145.06,145.03,35.64]
[1749908779340,0.05128585,145.06,145.05,6.8914]
[1749908779537,5.21124975,145.12,145.04,5.21124975]
[1749908779840,6.889,145.11,145.07,6.8903]
[1749908780040,6.889,145.11,145.07,42.5303]
[1749908780431,6.8892,145.1,145.07,42.5303]
[1749908780632,6.93491046,145.1,145.07,42.57828668]
[1749908782038,6.93491046,145.1,145.07,35.68798668]
[1749908782340,0.04571046,145.1,145.07,35.68798668]
[1749908782935,6.89,145.08,145.07,35.68798668]
[1749908783138,6.89,145.08,145.07,0.04798668]
[1749908785441,6.8898,145.09,145.07,0.04798668]
[1749908785836,0.04571046,145.1,145.07,0.04798668]
[1749908786041,6.8896,145.09,145.07,0.04798668]
[1749908786238,0.04571046,145.1,145.07,0.04798668]
[1749908786642,6.8896,145.09,145.07,0.04798668]
[1749908788950,6.89,145.08,145.07,0.04798668]
[1749908789244,0.04571046,145.1,145.07,0.04798668]
[1749908789445,6.8898,145.09,145.07,0.04798668]
[1749908791439,6.93491046,145.1,145.07,6.93848668]
[1749908791636,6.93491046,145.1,145.07,0.04798668]
[1749908792041,0.04571046,145.1,145.07,0.04798668]
[1749908792241,6.8898,145.09,145.07,0.04798668]
[1749908792450,0.04571046,145.1,145.07,0.04798668]
[1749908792844,0.04571046,145.1,145.08,6.8898]
[1749908793040,0.04571046,145.1,145.07,0.04798668]
[1749908793447,6.8898,145.09,145.07,0.04798668]
[1749908794541,6.89,145.08,145.07,0.04798668]
[1749908795949,6.8898,145.09,145.07,0.04798668]
[1749908796151,0.04571046,145.1,145.07,0.04798668]
[1749908796742,6.8895,145.09,145.07,0.04798668]
[1749908797749,6.93481046,145.1,145.07,6.93838668]
[1749908798354,9.49,145.09,145.07,6.93838668]
[1749908799257,9.49,145.09,145.08,42.53]
[1749908800445,9.49,145.09,145.08,51.0362075]
[1749908801362,3.63217755,145.09,145.08,51.0362075]
[1749908801655,0.01727755,145.09,145.08,51.0362075]
[1749908801851,0.04571046,145.1,145.09,6.8895]
[1749908802162,6.8868,145.15,145.09,18.08287987]
[1749908802460,6.8868,145.15,145.11,15.46810801]
[1749908802654,6.8868,145.15,145.12,35.36]
[1749908802849,6.8864,145.16,145.12,35.36]
[1749908803158,0.04555483,145.15,145.13,0.04831994]
[1749908803658,0.04555483,145.15,145.13,6.93571994]
[1749908804558,0.04555483,145.15,145.13,0.04831994]
[1749908805162,0.04555483,145.15,145.13,6.93571994]
[1749908809066,0.04555483,145.15,145.13,0.04831994]
[1749908809864,0.04555483,145.15,145.14,5.21315768]
[1749908810260,0.04555483,145.15,145.14,6.8871]
[1749908812468,0.04555483,145.15,145.13,0.04831994]
[1749908814663,5.21315768,145.14,145.13,0.04831994]
[1749908815266,12.10025768,145.14,145.13,0.04831994]
[1749908815770,6.8876,145.13,145.12,35.36]
[1749908816166,5.21315768,145.14,145.09,6.8893]
[1749908816167,5.21315768,145.14,145.09,35.34]
[1749908816362,12.10155768,145.12,145.09,35.34]
[1749908816875,12.14880648,145.12,145.09,35.38824083]
[1749908817071,12.14880648,145.12,145.09,42.27774083]
[1749908818674,6.9356488,145.12,145.09,42.27774083]
[1749908819172,6.9356488,145.12,145.1,6.889]
[1749908819575,6.9356488,145.12,145.09,35.38824083]
[1749908819771,6.9356488,145.12,145.09,42.27754083]
[1749908820581,6.8886,145.11,145.09,35.38824083]
[1749908821576,6.889,145.1,145.09,35.38824083]
[1749908823781,6.889,145.1,145.09,0.04824083]
[1749908826080,12.11315768,145.1,145.01,8.57980801]
[1749908826275,5.21315768,145.03,144.96,43.93980801]
[1749908826477,5.21315768,145.01,144.96,35.36]
[1749908826672,6.8946,144.99,144.96,35.36]
[1749908827182,6.9454583,144.99,144.96,35.36]
[1749908828278,6.9453583,144.99,144.96,35.36]
[1749908829987,6.9453583,144.99,144.96,42.2556]
[1749908830186,6.9453583,144.99,144.96,35.36]
[1749908832187,6.8948,144.98,144.96,35.36]
[1749908832988,0.0508583,144.99,144.96,35.36]
[1749908833583,0.0508583,144.99,144.96,40.57315768]
[1749908833778,0.0508583,144.99,144.96,49.15296569]
[1749908833986,0.0508583,144.99,144.98,6.8947]
[1749908834481,0.0508583,144.99,144.96,42.2557]
[1749908834781,0.0508583,144.99,144.96,170.66]
[1749908835178,0.0508583,144.99,144.97,6.8952]
[1749908835584,0.0508583,144.99,144.96,42.2556]
[1749908835782,0.0508583,144.99,144.96,177.5556]
[1749908835980,0.0508583,144.99,144.96,170.66]
[1749908836183,0.0508583,144.99,144.97,6.8952]
[1749908836987,0.0508583,144.99,144.96,177.5555]
[1749908837886,0.0508583,144.99,144.97,6.8952]
[1749908839193,0.0508583,144.99,144.96,170.66]
[1749908839382,2.1833,145.04,144.97,5.21315768]
[1749908839582,6.8924,145.03,144.99,6.894]
[1749908839891,6.8924,145.03,145.0,35.58]
[1749908840284,5.21315768,145.05,145.0,35.62964309]
[1749908840597,0.04678773,145.03,145.0,35.62964309]
[1749908840796,0.04678773,145.03,145.01,6.8933]
[1749908840996,0.04678773,145.03,145.0,35.62964309]
[1749908841296,0.04678773,145.03,145.02,6.8928]
[1749908851610,35.56,145.13,145.06,6.8908]
[1749908851899,5.21315768,145.1,145.06,6.8908]
[1749908852104,12.10255768,145.1,145.06,6.8908]
[1749908852806,0.04833121,145.09,145.07,0.04783002]
[1749908853709,0.04833121,145.09,145.07,6.93823002]
[1749908854303,5.21315768,145.08,145.07,0.04783002]
[1749908854611,5.21315768,145.08,145.02,35.56]
[1749908854612,8.07520645,145.08,145.02,35.56]
[1749908854812,5.21315768,145.04,145.0,42.4533]
[1749908855008,5.21315768,145.04,145.0,35.56]
[1749908855405,5.21315768,145.04,145.01,0.04717748]
[1749908855406,2.90507022,145.03,145.01,0.04717748]
[1749908855710,0.04344354,145.03,145.01,0.04717748]
[1749908856209,6.93604354,145.03,145.01,0.04717748]
[1749908859316,6.8928,145.02,145.01,0.04717748]
[1749908864717,12.10595768,145.02,145.01,0.04717748]
[1749908865221,6.8941,145.0,144.97,439.7349]
[1749908866219,0.05030267,145.0,144.97,432.84]
[1749908866719,0.05030267,145.0,144.98,6.8945]
[1749908867523,0.05030267,145.0,144.97,439.7351]
[1749908867826,6.94420267,145.0,144.97,439.7351]
[1749908868426,6.94420267,145.0,144.97,575.5951]
[1749908869424,6.94420267,145.0,144.97,439.7351]
[1749908869725,6.94420267,145.0,144.97,575.5151]
[1749908876618,6.94420267,145.0,144.97,568.62]
[1749908876822,6.94420267,145.0,144.97,577.19980801]
[1749908877731,6.94420267,145.0,144.97,584.09500801]
[1749908880128,0.05030267,145.0,144.97,584.09500801]
[1749908881229,0.05030267,145.0,144.97,577.19980801]
[1749908881733,6.8945,144.99,144.97,577.19980801]
[1749908882235,6.8945,144.99,144.98,135.38]
[1749908883228,6.94410267,145.0,144.98,135.38]
[1749908885433,0.05030267,145.0,144.98,142.2746]
[1749908886542,0.05030267,145.0,144.99,6.8943]
[1749908886734,0.00159298,145.0,144.99,6.8943]
[1749908887039,6.8917,145.05,144.99,8.57980801]
[1749908887340,6.8917,145.05,144.98,146.34630801]
[1749908887530,6.8917,145.05,144.99,8.57980801]
[1749908887731,6.8919,145.04,145.01,6.893]
[1749908887932,6.94149867,145.04,145.01,42.85727018]
[1749908888237,6.94149867,145.04,145.01,35.96427018]
[1749908889540,6.94149867,145.04,145.01,42.85757018]
[1749908890232,6.8925,145.03,145.01,35.96427018]
[1749908892233,6.8928,145.02,145.01,0.04427018]
[1749908896740,0.04959867,145.04,145.01,0.04427018]
[1749908897740,6.8926,145.03,145.01,0.04427018]
[1749908899444,6.8926,145.03,145.01,8.62407819]
[1749908900848,6.8928,145.03,145.01,8.62407819]
[1749908901038,0.04959867,145.04,145.01,0.04427018]
[1749908901238,5.26275635,145.04,145.01,0.04427018]
[1749908901656,6.8928,145.02,145.01,0.04427018]
[1749908903345,6.8925,145.03,145.01,0.04427018]
[1749908905350,5.26275635,145.04,145.01,0.04427018]
[1749908906041,6.8928,145.02,145.01,0.04427018]
[1749908906749,6.8926,145.03,145.01,0.04427018]
[1749908908351,6.8928,145.02,145.01,0.04427018]
[1749908908551,0.04959867,145.04,145.01,0.04427018]
[1749908908940,6.8928,145.03,145.01,0.04427018]
[1749908909651,6.8928,145.03,145.01,8.62407819]
[1749908910740,6.94169867,145.04,145.01,8.62407819]
[1749908911352,6.8925,145.03,145.01,8.62407819]
[1749908911856,0.04959867,145.04,145.01,0.04427018]
[1749908912058,6.8928,145.02,145.01,0.04427018]
[1749908918063,6.8926,145.03,145.01,0.04427018]
[1749908919363,6.8928,145.02,145.01,0.04427018]
[1749908920960,6.8926,145.03,145.01,0.04427018]
[1749908921160,0.04959867,145.04,145.01,0.04427018]
[1749908922569,6.94189867,145.04,145.01,6.93737018]
[1749908923067,0.04959867,145.04,145.02,6.8928]
[1749908923470,0.04959867,145.04,145.02,42.0128]
[1749908925471,0.04959867,145.04,145.02,50.59260801]
[1749908925772,0.04959867,145.04,145.02,42.0128]
[1749908925970,6.94149867,145.04,145.02,42.0128]
[1749908926472,6.94149867,145.04,145.02,35.12]
[1749908926667,6.94149867,145.04,145.02,43.69980801]
[1749908926974,6.94149867,145.04,145.02,35.12]
[1749908927481,0.04959867,145.04,145.02,42.0128]
[1749908928777,6.94149867,145.04,145.02,42.0128]
[1749908930175,6.94149867,145.04,145.02,35.12]
[1749908931280,6.94149867,145.04,145.02,43.69980801]
[1749908931473,6.94149867,145.04,145.02,35.12]
[1749908931775,0.04959867,145.04,145.03,8.57980801]
[1749908932478,0.04959867,145.04,145.03,15.47220801]
[1749908932669,0.04959867,145.04,145.03,8.57980801]
[1749908933578,0.04959867,145.04,145.02,50.59240801]
[1749908934275,6.94159867,145.04,145.02,50.59240801]
[1749908934578,6.94159867,145.04,145.02,43.69980801]
[1749908938480,6.8924,145.03,145.02,43.69980801]
[1749908938688,0.04959867,145.04,145.02,43.69980801]
[1749908938874,0.04959867,145.04,145.02,35.12]
[1749908939289,6.94189867,145.04,145.02,35.12]
[1749908939880,6.8924,145.03,145.02,35.12]
[1749908942376,6.94169867,145.04,145.02,50.59250801]
[1749908942778,0.04959867,145.04,145.03,8.57980801]
[1749908943174,0.04959867,145.04,145.03,15.47220801]
[1749908943983,5.21740152,145.1,145.05,6.8911]
[1749908944187,136.4378347,145.11,145.06,35.12]
[1749908944393,136.4378347,145.11,145.07,35.12]
[1749908944788,6.8893,145.1,145.07,42.0102]
[1749908944990,6.9338599,145.1,145.07,42.05684719]
[1749908945986,0.0445599,145.1,145.08,6.89]
[1749908946191,0.0445599,145.1,145.07,35.16664719]
[1749908947291,0.0445599,145.1,145.09,6.8895]
[1749908949394,0.0445599,145.1,145.09,12.10690152]
[1749908949593,5.21740152,145.17,145.1,6.8887]
[1749908949787,42.0218,145.2,145.11,35.12]
[1749908949993,5.21740152,145.17,145.11,35.12]
[1749908950193,6.8871,145.15,145.11,42.0086]
[1749908950487,0.0454898,145.14,145.12,0.05074652]
[1749908951789,6.9327898,145.14,145.12,0.05074652]
[1749908952609,0.0454898,145.14,145.12,0.05074652]
[1749908953695,5.21740152,145.2,145.12,0.05074652]
[1749908953902,5.21740152,145.16,145.12,34.86]
[1749908954408,5.21740152,145.17,145.12,34.86]
[1749908954704,0.04867642,145.16,145.13,6.93434238]
[1749908955100,14.62,145.15,145.13,0.04714238]
[1749908955302,14.62,145.15,145.14,6.8871]
[1749908955605,14.62,145.15,145.13,0.04714238]
[1749908956005,14.62,145.15,145.14,6.8871]
[1749908956807,14.62,145.15,145.13,0.04714238]
[1749908958212,14.62,145.15,145.14,6.8871]
[1749908959413,14.62,145.15,145.13,6.93454238]
[1749908960217,14.62,145.15,145.14,6.8871]
[1749908962214,14.62,145.15,145.13,6.93454238]
[1749908962416,14.62,145.15,145.13,0.04714238]
[1749908964613,21.5067,145.15,145.13,0.04714238]
[1749908966315,6.8871,145.14,145.13,0.04714238]
[1749908966511,14.62,145.15,145.13,0.04714238]
[1749908969621,14.62,145.15,145.13,6.93474238]
[1749908970123,14.62,145.15,145.13,0.04714238]
[1749908970321,21.5067,145.15,145.13,0.04714238]
[1749908971823,14.62,145.15,145.13,0.04714238]
[1749908972420,14.62,145.15,145.13,6.93474238]
[1749908973221,0.04867642,145.16,145.14,6.8871]
[1749908974820,0.04867642,145.16,145.13,5.2645439]
[1749908975520,0.04867642,145.16,145.15,6.8867]
[1749908979533,0.04867642,145.16,145.14,6.8869]
[1749908980332,0.04867642,145.16,145.15,6.8867]
[1749908982335,0.04867642,145.16,145.13,5.2645439]
[1749908982336,0.04867642,145.16,145.14,6.8869]
[1749908983626,6.93497642,145.16,145.13,5.2645439]
[1749908983930,6.93497642,145.16,145.13,6.93454238]
[1749908984128,6.93497642,145.16,145.13,0.04714238]
[1749908984533,0.04867642,145.16,145.14,6.8871]
[1749908986729,0.04867642,145.16,145.15,12.10410152]
[1749908987032,0.04867642,145.16,145.15,6.8867]
[1749908989432,0.04867642,145.16,145.15,12.10410152]
[1749908989628,0.04867642,145.16,145.15,20.70294016]
[1749908989833,0.04867642,145.16,145.15,12.10410152]
[1749908992537,0.04867642,145.16,145.15,20.70294016]
[1749908994938,12.31867642,145.16,145.15,20.70294016]
[1749908995343,12.31867642,145.16,145.15,12.10410152]
[1749908997854,12.31867642,145.16,145.15,20.68329889]
[1749908998146,12.31867642,145.16,145.15,145.84410152]
[1749908999442,0.18377642,145.16,145.15,145.84410152]
[1749908999748,9.0899,145.23,145.15,138.95740152]
[1749908999950,9.0899,145.23,145.17,5.21740152]
[1749909000252,9.0899,145.23,145.19,6.8845]
[1749909000642,0.04542279,145.22,145.2,0.04425325]
[1749909002754,6.8838,145.21,145.2,0.04425325]
[1749909003252,0.04542279,145.22,145.2,0.04425325]
[1749909003558,0.04542279,145.22,145.2,34.72425325]
[1749909003851,0.04542279,145.22,145.21,6.8838]
[1749909005656,2.2091,145.27,145.24,6.8823]
[1749909005846,2.2091,145.27,145.24,34.68]
[1749909006048,2.2124,145.31,145.24,34.68]
[1749909006247,4.5817,145.31,145.24,34.68]
[1749909006448,2.3693,145.31,145.25,5.21740152]
[1749909006654,0.04349626,145.29,145.27,0.05129943]
[1749909007652,0.04349626,145.29,145.28,6.8805]
[1749909007857,0.04349626,145.29,145.28,41.5405]
[1749909015257,0.04349626,145.29,145.28,46.75790152]
[1749909016363,0.04349626,145.29,145.28,34.66]
[1749909016762,0.04349626,145.29,145.28,41.5405]
[1749909016964,0.04349626,145.29,145.2,20.65012681]
[1749909016965,0.04349626,145.29,145.2,4.6008]
[1749909017151,6.8807,145.28,145.23,6.8826]
[1749909017352,9.95260152,145.31,145.23,5.21740152]
[1749909017553,4.7352,145.31,145.23,5.21740152]
[1749909017758,11.6148,145.31,145.23,5.21740152]
[1749909017963,0.04584552,145.28,145.26,6.93331889]
[1749909018266,0.04584552,145.28,145.27,35.04]
[1749909018763,0.04584552,145.28,145.27,41.921]
[1749909023767,0.04584552,145.28,145.27,47.13840152]
[1749909027572,4.552e-05,145.28,145.27,47.13840152]
[1749909028073,4.552e-05,145.28,145.27,181.07840152]
[1749909034177,9.92,145.3,145.29,6.88]
[1749909034378,6.8768,145.36,145.29,5.21740152]
[1749909034587,4.7581,145.37,145.31,5.21740152]
[1749909034780,4.7581,145.37,145.32,35.04]
[1749909035085,6.877,145.36,145.32,35.04]
[1749909035286,6.92065226,145.36,145.33,0.052233]
[1749909036381,0.04365226,145.36,145.33,6.930233]
[1749909037489,0.04365226,145.36,145.33,0.052233]
[1749909037979,6.92045226,145.36,145.33,6.930033]
[1749909038588,0.04365226,145.36,145.33,6.930033]
[1749909038789,0.04365226,145.36,145.34,6.8777]
[1749909039288,0.04365226,145.36,145.33,6.930133]
[1749909039791,6.92035226,145.36,145.33,6.930133]
[1749909039990,0.04365226,145.36,145.34,6.8775]
[1749909041387,0.04365226,145.36,145.35,6.8772]
[1749909043597,0.04365226,145.36,145.34,6.8774]
[1749909043898,0.04365226,145.36,145.33,5.26963452]
[1749909044102,0.04365226,145.36,145.35,5.21740152]
[1749909044396,0.04365226,145.36,145.35,12.09460152]
[1749909045598,9.82,145.39,145.38,6.8758]
[1749909045806,9.82,145.39,145.38,41.6958]
[1749909049901,9.82,145.39,145.38,34.82]
[1749909052306,9.82,145.39,145.38,31.2112]
[1749909054596,16.6953,145.39,145.38,31.2112]
[1749909055506,16.6953,145.39,145.38,27.6025]
[1749909055708,6.8758,145.38,145.37,0.0507543]
[1749909056100,14.4195,145.39,145.35,34.8]
[1749909056301,6.8767,145.36,145.35,34.8]
[1749909063407,6.8767,145.36,145.34,0.05121389]
[1749909063613,12.09740152,145.36,145.26,8.52860647]
[1749909063808,5.21740152,145.3,145.27,34.8]
[1749909064000,5.21740152,145.3,145.26,34.8]
[1749909064608,6.8805,145.28,145.27,0.04346527]
[1749909065614,6.881,145.27,145.26,34.8]
[1749909065815,5.21740152,145.28,145.26,34.8]
[1749909066516,5.21740152,145.28,145.26,34.84579088]
[1749909067009,5.21740152,145.28,145.26,0.04579088]
[1749909067218,5.21740152,145.28,145.23,34.8]
[1749909067512,5.21740152,145.25,145.23,34.8]
[1749909068314,6.8824,145.24,145.23,34.84460789]
[1749909068518,5.26961465,145.25,145.23,34.84460789]
[1749909069517,0.05221313,145.25,145.23,34.84460789]
[1749909069910,0.05221313,145.25,145.24,6.8824]
[1749909071013,0.05221313,145.25,145.23,34.84460789]
[1749909071014,0.05221313,145.25,145.23,41.72730789]
[1749909074113,0.05221313,145.25,145.23,34.84460789]
[1749909075211,0.05221313,145.25,145.23,41.72730789]
[1749909079318,0.05221313,145.25,145.24,6.8824]
[1749909080618,0.05221313,145.25,145.23,41.72730789]
[1749909081412,0.05221313,145.25,145.24,6.8824]
[1749909105436,44.55010152,145.33,145.28,6.8805]
[1749909105837,44.55010152,145.33,145.27,168.2]
[1749909106540,0.05055845,145.31,145.29,0.05178801]
[1749909107242,6.92995845,145.31,145.29,0.05178801]
[1749909112449,6.8796,145.3,145.29,0.05178801]
[1749909113450,6.92975845,145.31,145.29,0.05178801]
[1749909115945,6.8796,145.3,145.29,0.05178801]
[1749909119756,10.25868686,145.31,145.29,0.05178801]
[1749909120650,0.05055845,145.31,145.3,6.8796]
[1749909120951,0.05055845,145.31,145.3,10.20852841]
[1749909121356,0.05055845,145.31,145.3,6.8796]
[1749909122347,0.05055845,145.31,145.29,8.58039448]
[1749909122348,0.05055845,145.31,145.29,0.05178801]
[1749909123155,0.05055845,145.31,145.29,6.93158801]
[1749909123551,0.05055845,145.31,145.29,0.05178801]
[1749909124650,0.05055845,145.31,145.3,6.8796]
[1749909126158,39.81888493,145.42,145.3,8.52860647]
[1749909126346,46.50188493,145.42,145.33,5.19888493]
[1749909126553,6.683,145.42,145.37,6.8762]
[1749909126949,34.62,145.45,145.37,5.19888493]
[1749909127258,0.04394279,145.42,145.4,0.04903808]
[1749909131561,6.91784279,145.42,145.4,0.04903808]
[1749909132154,6.8743,145.41,145.4,0.04903808]
[1749909132356,5.24282772,145.42,145.36,34.62]
[1749909132858,6.8761,145.38,145.36,34.62]
[1749909133462,6.92897158,145.38,145.36,34.66597857]
[1749909133859,0.05287158,145.38,145.36,34.66597857]
[1749909134565,6.92877158,145.38,145.36,34.66597857]
[1749909134764,0.05287158,145.38,145.36,41.54267857]
[1749909135364,6.92867158,145.38,145.36,34.66597857]
[1749909136361,6.8762,145.37,145.36,34.66597857]
[1749909138572,6.92877158,145.38,145.36,34.66597857]
[1749909146771,0.05287158,145.38,145.36,41.54267857]
[1749909146973,0.05287158,145.38,145.36,39.8648635]
[1749909147372,0.05287158,145.38,145.36,46.7413635]
[1749909148779,0.05287158,145.38,145.36,39.8648635]
[1749909148962,0.05287158,145.38,145.36,34.66597857]
[1749909151673,6.92887158,145.38,145.36,34.66597857]
[1749909152577,0.05287158,145.38,145.36,41.54237857]
[1749909153181,0.05287158,145.38,145.37,6.8762]
[1749909153878,0.05287158,145.38,145.37,12.07508493]
[1749909154678,6.8742,145.42,145.39,6.8752]
[1749909154882,6.8732,145.43,145.39,6.8752]
[1749909155071,39.81888493,145.45,145.39,6.8752]
[1749909155371,39.81888493,145.45,145.37,5.19888493]
[1749909155577,6.8734,145.43,145.37,5.19888493]
[1749909155781,0.05106615,145.41,145.39,6.92671055]
[1749909156184,0.05106615,145.41,145.4,34.6]
[1749909157783,0.05106615,145.41,145.4,41.4744]
[1749909158979,0.05106615,145.41,145.4,34.6]
[1749909160080,0.05106615,145.41,145.4,41.4744]
[1749909163589,0.05106615,145.41,145.4,46.67328493]
[1749909167184,6.615e-05,145.41,145.4,46.67328493]
[1749909167989,5.19888493,145.49,145.43,6.8726]
[1749909168182,5.19888493,145.49,145.44,34.58]
[1749909168383,6.871,145.48,145.44,34.58]
[1749909168791,6.871,145.48,145.44,41.4524]
[1749909168994,0.04762259,145.47,145.45,0.04690644]
[1749909169284,6.91872259,145.47,145.45,0.04690644]
[1749909171389,6.8716,145.46,145.45,0.04690644]
[1749909180498,6.91892259,145.47,145.45,0.04690644]
[1749909181199,0.04762259,145.47,145.45,0.04690644]
[1749909182200,0.04762259,145.47,145.46,6.8716]
[1749909183092,0.04762259,145.47,145.45,6.91880644]
[1749909183287,0.04762259,145.47,145.45,0.04690644]
[1749909183993,0.04762259,145.47,145.46,6.8716]
[1749909188906,0.04762259,145.47,145.45,12.11749137]
[1749909189203,0.04762259,145.47,145.45,5.24579137]
[1749909190307,0.04762259,145.47,145.46,6.8716]
[1749909191399,0.04762259,145.47,145.46,10.19073331]
[1749909192093,0.04762259,145.47,145.45,10.23793975]
[1749909192298,0.04762259,145.47,145.45,3.36603975]
[1749909192807,0.04762259,145.47,145.45,10.23783975]
[1749909193302,0.04762259,145.47,145.45,6.91870644]
[1749909193604,0.04762259,145.47,145.46,6.8716]
[1749909194506,0.04762259,145.47,145.45,0.04690644]
[1749909195098,0.04762259,145.47,145.46,6.8716]
[1749909195507,0.04762259,145.47,145.45,0.04690644]
[1749909195801,0.04762259,145.47,145.45,6.91880644]
[1749909196202,0.04762259,145.47,145.46,6.8716]
[1749909197502,0.04762259,145.47,145.45,6.91870644]
[1749909197904,0.04762259,145.47,145.45,0.04690644]
[1749909198098,0.04762259,145.47,145.45,6.91870644]
[1749909198505,0.04762259,145.47,145.45,0.04690644]
[1749909199711,0.04762259,145.47,145.46,6.8716]
[1749909201112,0.04762259,145.47,145.45,6.91870644]
[1749909201307,0.04762259,145.47,145.45,0.04690644]
[1749909202111,13.26,145.46,145.45,0.04690644]
[1749909202810,13.26,145.46,145.45,6.91860644]
[1749909203512,13.26,145.46,145.45,12.10682478]
[1749909205520,0.04762259,145.47,145.46,6.8716]
[1749909206121,11.92851834,145.54,145.45,9.73402478]
[1749909206421,5.18821834,145.52,145.45,5.18821834]
[1749909206621,5.18821834,145.52,145.44,34.58]
[1749909206819,10.6196827,145.52,145.44,34.58]
[1749909207120,0.05299129,145.49,145.47,0.05170373]
[1749909207524,6.92349129,145.49,145.47,0.05170373]
[1749909207727,0.05299129,145.49,145.47,0.05170373]
[1749909208523,0.05299129,145.49,145.44,34.58]
[1749909208727,4.53739129,145.49,145.44,34.58]
[1749909208928,6.8714,145.47,145.44,41.4523]
[1749909209225,6.8714,145.47,145.44,34.58]
[1749909209530,6.8714,145.47,145.44,34.62389585]
[1749909210430,6.8714,145.47,145.44,41.49619585]
[1749909212623,4.53739129,145.49,145.44,41.49619585]
[1749909212830,9.99173004,145.49,145.44,41.49619585]
[1749909213131,6.8715,145.47,145.44,41.49619585]
[1749909213733,6.8715,145.47,145.45,6.872]
[1749909215332,6.8717,145.46,145.44,41.49629585]
[1749909215524,6.92306437,145.46,145.44,41.49629585]
[1749909216226,6.92306437,145.46,145.44,34.62389585]
[1749909216426,0.05136437,145.46,145.44,34.62389585]
[1749909217230,0.05136437,145.46,145.44,41.49629585]
[1749909217931,6.92296437,145.46,145.44,34.62389585]
[1749909219733,6.8721,145.45,145.44,34.62389585]
[1749909221238,6.92316437,145.46,145.44,34.62389585]
[1749909224631,0.05136437,145.46,145.44,41.49629585]
[1749909226334,6.92296437,145.46,145.44,41.49629585]
[1749909226634,0.05136437,145.46,145.44,41.49629585]
[1749909227234,0.05136437,145.46,145.44,34.62389585]
[1749909228035,6.92316437,145.46,145.44,41.49639585]
[1749909229338,0.05136437,145.46,145.44,41.49639585]
[1749909230540,0.05136437,145.46,145.44,34.62389585]
[1749909230739,0.05136437,145.46,145.44,0.04389585]
[1749909231126,6.92316437,145.46,145.44,0.04389585]
[1749909232637,0.05136437,145.46,145.44,0.04389585]
[1749909233029,0.05136437,145.46,145.45,6.8721]
[1749909251250,0.05136437,145.46,145.45,10.19223551]